[Event "*** Titled Tuesday Blitz"]
[Site "Chess.com"]
[Date "2020.04.07"]
[Round "8"]
[White "JacekDubiel"]
[Black "indfraeng"]
[Result "1-0"]
[WhiteElo "2389"]
[BlackElo "2229"]
[TimeControl "180+1"]
[EndTime "14:33:06 PDT"]
[Termination "JacekDubiel won by checkmate"]

1. e4 {[%clk 0:03:00.9]} 1... e5 {[%clk 0:03:00.1]} 2. Nf3 {[%clk 0:03:00.9]}
2... Nc6 {[%clk 0:03:00.4]} 3. Bc4 {[%clk 0:03:01.4]} 3... Bc5 {[%clk
0:03:00.9]} 4. O-O {[%clk 0:03:00.8]} 4... Nf6 {[%clk 0:03:00.6]} 5. d4 {[%clk
0:03:00.9]} 5... Bxd4 {[%clk 0:03:00.1]} 6. Nxd4 {[%clk 0:03:00.9]} 6... Nxd4
{[%clk 0:02:49.5]} 7. f4 {[%clk 0:03:00.8]} 7... d6 {[%clk 0:02:48.7]} 8. fxe5
{[%clk 0:03:01]} 8... dxe5 {[%clk 0:02:48.5]} 9. Bg5 {[%clk 0:03:01.6]} 9... Be6
{[%clk 0:02:44.9]} 10. Na3 {[%clk 0:03:01.2]} 10... Bxc4 {[%clk 0:02:36.7]} 11.
Nxc4 {[%clk 0:02:52.8]} 11... Qe7 {[%clk 0:02:36.4]} 12. Bxf6 {[%clk 0:02:43.7]}
12... gxf6 {[%clk 0:02:37.3]} 13. c3 {[%clk 0:02:43.9]} 13... O-O-O {[%clk
0:02:16.3]} 14. cxd4 {[%clk 0:02:32.6]} 14... Rxd4 {[%clk 0:02:15.7]} 15. Qb3
{[%clk 0:02:19.4]} 15... Qc5 {[%clk 0:02:09.6]} 16. Ne3 {[%clk 0:02:19.2]} 16...
Rxe4 {[%clk 0:02:09]} 17. Rfe1 {[%clk 0:02:13.9]} 17... f5 {[%clk 0:01:46.1]}
18. Rac1 {[%clk 0:02:08.4]} 18... Qd4 {[%clk 0:01:36.4]} 19. Rcd1 {[%clk
0:02:02.7]} 19... Qc5 {[%clk 0:01:29.9]} 20. Qxf7 {[%clk 0:01:55.8]} 20... a6
{[%clk 0:01:19.7]} 21. Qxf5+ {[%clk 0:01:54.8]} 21... Kb8 {[%clk 0:01:17.5]} 22.
Qxe4 {[%clk 0:01:54.9]} 22... Rg8 {[%clk 0:01:17.9]} 23. Qd5 {[%clk 0:01:50.4]}
23... Qf8 {[%clk 0:01:16.3]} 24. Rf1 {[%clk 0:01:46.3]} 24... Qg7 {[%clk
0:01:15.7]} 25. Kh1 {[%clk 0:01:45.1]} 25... e4 {[%clk 0:01:11.2]} 26. Rf7
{[%clk 0:01:25.2]} 26... Qh6 {[%clk 0:01:04.4]} 27. Rd7 {[%clk 0:01:12.4]} 27...
Rg6 {[%clk 0:00:56.1]} 28. Rd8+ {[%clk 0:01:08.9]} 28... Ka7 {[%clk 0:00:55.3]}
29. Qc5+ {[%clk 0:01:08.6]} 29... Rb6 {[%clk 0:00:55]} 30. Qxc7 {[%clk
0:01:05.2]} 30... Rc6 {[%clk 0:00:54.1]} 31. Qg3 {[%clk 0:00:55.1]} 31... Kb6
{[%clk 0:00:55]} 32. Nd5+ {[%clk 0:00:53]} 32... Ka7 {[%clk 0:00:51.3]} 33. Qf2+
{[%clk 0:00:49.4]} 33... e3 {[%clk 0:00:51.4]} 34. Qxe3+ {[%clk 0:00:49]} 34...
Qxe3 {[%clk 0:00:50.7]} 35. Nxe3 {[%clk 0:00:49.9]} 35... Rb6 {[%clk 0:00:51.6]}
36. b3 {[%clk 0:00:49]} 36... Re6 {[%clk 0:00:50.9]} 37. R1d3 {[%clk 0:00:49]}
37... a5 {[%clk 0:00:51.8]} 38. h3 {[%clk 0:00:49.3]} 38... Ka6 {[%clk
0:00:51.9]} 39. R8d6+ {[%clk 0:00:48.7]} 39... Rxd6 {[%clk 0:00:49.8]} 40. Rxd6+
{[%clk 0:00:49.6]} 40... Kb5 {[%clk 0:00:50.5]} 41. Rh6 {[%clk 0:00:49.7]} 41...
Kb4 {[%clk 0:00:51.4]} 42. Rxh7 {[%clk 0:00:50.1]} 42... Ka3 {[%clk 0:00:52.3]}
43. Rxb7 {[%clk 0:00:50]} 43... Kxa2 {[%clk 0:00:53.2]} 44. h4 {[%clk
0:00:50.5]} 44... Ka3 {[%clk 0:00:51.9]} 45. h5 {[%clk 0:00:50.2]} 45... a4
{[%clk 0:00:51.8]} 46. bxa4 {[%clk 0:00:49.8]} 46... Kxa4 {[%clk 0:00:52.7]} 47.
h6 {[%clk 0:00:50.3]} 47... Ka3 {[%clk 0:00:47.8]} 48. h7 {[%clk 0:00:50.3]}
48... Ka2 {[%clk 0:00:48.7]} 49. h8=Q {[%clk 0:00:50.1]} 49... Ka3 {[%clk
0:00:47.9]} 50. Qa8# {[%clk 0:00:51]} 1-0

[Event "*** Titled Tuesday Blitz"]
[Site "Chess.com"]
[Date "2020.04.07"]
[Round "8"]
[White "letantha"]
[Black "Supelyel"]
[Result "1-0"]
[WhiteElo "2160"]
[BlackElo "2331"]
[TimeControl "180+1"]
[EndTime "14:33:07 PDT"]
[Termination "letantha won on time"]

1. e4 {[%clk 0:03:00.9]} 1... c5 {[%clk 0:02:58.3]} 2. c3 {[%clk 0:03:00.1]}
2... d5 {[%clk 0:02:56.6]} 3. exd5 {[%clk 0:02:55.8]} 3... Qxd5 {[%clk
0:02:55.4]} 4. d4 {[%clk 0:02:48.3]} 4... Nf6 {[%clk 0:02:53.8]} 5. Nf3 {[%clk
0:02:47]} 5... Bg4 {[%clk 0:02:50.8]} 6. Nbd2 {[%clk 0:02:44.9]} 6... cxd4
{[%clk 0:02:20.2]} 7. Bc4 {[%clk 0:02:42.2]} 7... Qd6 {[%clk 0:02:02.2]} 8. Qb3
{[%clk 0:02:34.4]} 8... Qb6 {[%clk 0:00:49.2]} 9. Bxf7+ {[%clk 0:02:31.5]} 9...
Kd8 {[%clk 0:00:47.4]} 10. Nxd4 {[%clk 0:02:30.9]} 10... Qxb3 {[%clk 0:00:43.5]}
11. Bxb3 {[%clk 0:02:31.8]} 11... e5 {[%clk 0:00:29.1]} 12. Ne6+ {[%clk
0:02:27.4]} 12... Bxe6 {[%clk 0:00:26.6]} 13. Bxe6 {[%clk 0:02:28.3]} 13... Bd6
{[%clk 0:00:26.1]} 14. O-O {[%clk 0:02:24.9]} 14... Ke7 {[%clk 0:00:26.2]} 15.
Bb3 {[%clk 0:02:24.6]} 15... Nc6 {[%clk 0:00:26.6]} 16. Nc4 {[%clk 0:02:23]}
16... Bc7 {[%clk 0:00:25.8]} 17. a4 {[%clk 0:02:20]} 17... Rae8 {[%clk
0:00:19.2]} 18. g3 {[%clk 0:02:19.7]} 18... Kd8 {[%clk 0:00:19.1]} 19. Be3
{[%clk 0:02:19.2]} 19... Kc8 {[%clk 0:00:19.4]} 20. a5 {[%clk 0:02:16.9]} 20...
e4 {[%clk 0:00:19.1]} 21. a6 {[%clk 0:02:15.4]} 21... b6 {[%clk 0:00:19]} 22.
Ba4 {[%clk 0:02:15]} 22... Re6 {[%clk 0:00:19.2]} 23. Bb3 {[%clk 0:02:10]} 23...
Re7 {[%clk 0:00:18.7]} 24. Bg5 {[%clk 0:01:54.8]} 24... Rf8 {[%clk 0:00:17.4]}
25. Ne3 {[%clk 0:01:54.5]} 25... Ne5 {[%clk 0:00:17.3]} 26. Bxf6 {[%clk
0:01:48.5]} 26... Nf3+ {[%clk 0:00:17.5]} 27. Kg2 {[%clk 0:01:47.8]} 27... Rxf6
{[%clk 0:00:18.4]} 28. Nd5 {[%clk 0:01:47.1]} 28... Rh6 {[%clk 0:00:15.2]} 29.
Nxe7+ {[%clk 0:01:47]} 29... Kd7 {[%clk 0:00:15.6]} 30. h4 {[%clk 0:01:39.7]}
30... Kxe7 {[%clk 0:00:15.7]} 31. Bd5 {[%clk 0:01:38.3]} 31... Ne5 {[%clk
0:00:06.5]} 32. Bxe4 {[%clk 0:01:37.6]} 32... Kf6 {[%clk 0:00:07]} 33. Rad1
{[%clk 0:01:33.6]} 33... Ke7 {[%clk 0:00:06.7]} 34. Rfe1 {[%clk 0:01:33]} 34...
Rf6 {[%clk 0:00:03.8]} 35. Bxh7 {[%clk 0:01:29.6]} 35... Kf8 {[%clk 0:00:03.5]}
36. Be4 {[%clk 0:01:23.3]} 36... Ng4 {[%clk 0:00:03.7]} 37. f4 {[%clk
0:01:16.8]} 37... Bd6 {[%clk 0:00:01.8]} 38. Bc6 {[%clk 0:01:11]} 38... Bc5
{[%clk 0:00:01.2]} 39. Rd8+ {[%clk 0:01:06.8]} 39... Kf7 {[%clk 0:00:01.5]} 40.
Be8+ {[%clk 0:01:06.3]} 1-0

[Event "*** Titled Tuesday Blitz"]
[Site "Chess.com"]
[Date "2020.04.07"]
[Round "8"]
[White "zivicd"]
[Black "ethylalcohol"]
[Result "0-1"]
[WhiteElo "2263"]
[BlackElo "2158"]
[TimeControl "180+1"]
[EndTime "14:33:07 PDT"]
[Termination "ethylalcohol won by resignation"]

1. e4 {[%clk 0:03:00.9]} 1... e6 {[%clk 0:02:59.1]} 2. d4 {[%clk 0:03:00.3]}
2... d5 {[%clk 0:02:59.7]} 3. Nd2 {[%clk 0:03:00.2]} 3... Nf6 {[%clk 0:02:59.9]}
4. e5 {[%clk 0:03:00]} 4... Nfd7 {[%clk 0:02:59.7]} 5. c3 {[%clk 0:03:00.6]}
5... c5 {[%clk 0:03:00.3]} 6. Bd3 {[%clk 0:03:00.5]} 6... Nc6 {[%clk 0:03:00.5]}
7. Ne2 {[%clk 0:02:59.8]} 7... Qb6 {[%clk 0:03:00.8]} 8. Nf3 {[%clk 0:02:58.9]}
8... f6 {[%clk 0:03:01.2]} 9. exf6 {[%clk 0:02:58.4]} 9... Nxf6 {[%clk
0:03:01.5]} 10. O-O {[%clk 0:02:56.6]} 10... Bd6 {[%clk 0:02:59.5]} 11. a3
{[%clk 0:02:33.1]} 11... a5 {[%clk 0:02:50.1]} 12. dxc5 {[%clk 0:02:15.9]} 12...
Bxc5 {[%clk 0:02:47.8]} 13. Ng3 {[%clk 0:02:04.8]} 13... O-O {[%clk 0:02:46.7]}
14. Qe2 {[%clk 0:02:04.7]} 14... Bd7 {[%clk 0:02:42.7]} 15. Bg5 {[%clk
0:01:58.5]} 15... Rae8 {[%clk 0:02:35.3]} 16. b4 {[%clk 0:01:57.9]} 16... axb4
{[%clk 0:02:29.7]} 17. axb4 {[%clk 0:01:58.8]} 17... Bd6 {[%clk 0:02:29.9]} 18.
Be3 {[%clk 0:01:57.8]} 18... Qc7 {[%clk 0:02:26.8]} 19. b5 {[%clk 0:01:53.8]}
19... Nd8 {[%clk 0:02:12.2]} 20. b6 {[%clk 0:01:43.1]} 20... Qb8 {[%clk
0:02:11.3]} 21. c4 {[%clk 0:01:42.8]} 21... e5 {[%clk 0:02:01]} 22. Bf5 {[%clk
0:01:35.6]} 22... e4 {[%clk 0:01:48.3]} 23. Nd4 {[%clk 0:01:28]} 23... Bxg3
{[%clk 0:01:26]} 24. fxg3 {[%clk 0:01:28.9]} 24... Qe5 {[%clk 0:01:11.6]} 25. c5
{[%clk 0:01:09]} 25... Nc6 {[%clk 0:01:05]} 26. Bxd7 {[%clk 0:01:04.4]} 26...
Nxd4 {[%clk 0:01:02.9]} 27. Qf2 {[%clk 0:00:50]} 27... Nxd7 {[%clk 0:00:52.3]}
28. Bxd4 {[%clk 0:00:48.2]} 28... Rxf2 {[%clk 0:00:50.1]} 29. Bxe5 {[%clk
0:00:45.9]} 29... Rxf1+ {[%clk 0:00:48.7]} 30. Kxf1 {[%clk 0:00:42.3]} 30...
Nxe5 {[%clk 0:00:49.2]} 31. Ra7 {[%clk 0:00:37.6]} 31... Rb8 {[%clk 0:00:49.3]}
32. Ke2 {[%clk 0:00:33.6]} 32... Nc6 {[%clk 0:00:49.7]} 33. Ra4 {[%clk
0:00:27.9]} 33... d4 {[%clk 0:00:48.9]} 0-1

[Event "*** Titled Tuesday Blitz"]
[Site "Chess.com"]
[Date "2020.04.07"]
[Round "8"]
[White "AsaHoffmann"]
[Black "maxip32"]
[Result "0-1"]
[WhiteElo "2246"]
[BlackElo "2459"]
[TimeControl "180+1"]
[EndTime "14:33:10 PDT"]
[Termination "maxip32 won on time"]

1. d4 {[%clk 0:02:00.4]} 1... Nf6 {[%clk 0:02:59.1]} 2. Bg5 {[%clk 0:01:59.3]}
2... c5 {[%clk 0:02:57]} 3. d5 {[%clk 0:01:58.1]} 3... Ne4 {[%clk 0:02:56]} 4.
Bf4 {[%clk 0:01:54]} 4... Qb6 {[%clk 0:02:55.4]} 5. b3 {[%clk 0:01:51]} 5... Qf6
{[%clk 0:02:43.9]} 6. Bxb8 {[%clk 0:01:40.4]} 6... Qxa1 {[%clk 0:02:34.1]} 7.
Bf4 {[%clk 0:01:36.9]} 7... Nc3 {[%clk 0:02:33]} 8. Nxc3 {[%clk 0:01:34.7]} 8...
Qxc3+ {[%clk 0:02:33.9]} 9. Bd2 {[%clk 0:01:34.4]} 9... Qf6 {[%clk 0:02:30.7]}
10. e4 {[%clk 0:01:29.6]} 10... e6 {[%clk 0:02:08.4]} 11. Nf3 {[%clk 0:01:26.4]}
11... exd5 {[%clk 0:02:07.2]} 12. exd5 {[%clk 0:01:23.8]} 12... Bd6 {[%clk
0:01:51.8]} 13. Bg5 {[%clk 0:01:15.7]} 13... Qg6 {[%clk 0:01:47.5]} 14. Bd3
{[%clk 0:01:14.4]} 14... Qh5 {[%clk 0:01:47.2]} 15. Qe2+ {[%clk 0:01:12.7]}
15... Kf8 {[%clk 0:01:45.3]} 16. O-O {[%clk 0:01:11.7]} 16... f6 {[%clk
0:01:44.9]} 17. Bd2 {[%clk 0:01:01.2]} 17... Qe8 {[%clk 0:01:42.5]} 18. Be3
{[%clk 0:00:57.3]} 18... b6 {[%clk 0:01:41.3]} 19. Nd2 {[%clk 0:00:55.2]} 19...
Qe7 {[%clk 0:01:35.1]} 20. Qf3 {[%clk 0:00:51.5]} 20... Bb7 {[%clk 0:01:31]} 21.
c4 {[%clk 0:00:43.9]} 21... Re8 {[%clk 0:01:24.7]} 22. Ne4 {[%clk 0:00:43.1]}
22... Be5 {[%clk 0:01:23.2]} 23. Ng3 {[%clk 0:00:37.6]} 23... d6 {[%clk
0:01:19.5]} 24. Nf5 {[%clk 0:00:36.8]} 24... Qc7 {[%clk 0:01:08.5]} 25. Qh5
{[%clk 0:00:30.1]} 25... Bc8 {[%clk 0:01:02.5]} 26. g4 {[%clk 0:00:05.4]} 26...
Bxf5 {[%clk 0:00:59.8]} 27. Bxf5 {[%clk 0:00:03.8]} 27... Qf7 {[%clk 0:00:59.4]}
28. Qh3 {[%clk 0:00:02.7]} 28... g6 {[%clk 0:00:57.7]} 29. Be6 {[%clk
0:00:02.2]} 29... Rxe6 {[%clk 0:00:54.6]} 30. dxe6 {[%clk 0:00:01.8]} 30... Qxe6
{[%clk 0:00:55.5]} 0-1

[Event "*** Titled Tuesday Blitz"]
[Site "Chess.com"]
[Date "2020.04.07"]
[Round "8"]
[White "Sam_ChessMood"]
[Black "Keranke"]
[Result "1-0"]
[WhiteElo "2925"]
[BlackElo "2793"]
[TimeControl "180+1"]
[EndTime "14:33:11 PDT"]
[Termination "Sam_ChessMood won by resignation"]

1. e4 {[%clk 0:02:59.3]} 1... g6 {[%clk 0:02:57.8]} 2. d4 {[%clk 0:02:58.7]}
2... Bg7 {[%clk 0:02:58]} 3. Nf3 {[%clk 0:02:57.7]} 3... d6 {[%clk 0:02:58.6]}
4. Bc4 {[%clk 0:02:57.2]} 4... Nf6 {[%clk 0:02:58.6]} 5. Qe2 {[%clk 0:02:57.5]}
5... O-O {[%clk 0:02:58.9]} 6. O-O {[%clk 0:02:56.9]} 6... c6 {[%clk 0:02:58]}
7. Bb3 {[%clk 0:02:55.4]} 7... Qc7 {[%clk 0:02:55.2]} 8. e5 {[%clk 0:02:53.2]}
8... dxe5 {[%clk 0:02:55.3]} 9. dxe5 {[%clk 0:02:53]} 9... Nd5 {[%clk
0:02:55.9]} 10. h3 {[%clk 0:02:49.2]} 10... Na6 {[%clk 0:02:54.4]} 11. c3 {[%clk
0:02:09.5]} 11... Nc5 {[%clk 0:02:48]} 12. Bc2 {[%clk 0:02:09.5]} 12... a5
{[%clk 0:02:48.3]} 13. a3 {[%clk 0:01:47.4]} 13... b6 {[%clk 0:02:41.2]} 14. Rd1
{[%clk 0:01:35.4]} 14... Ba6 {[%clk 0:02:35.2]} 15. c4 {[%clk 0:01:35.7]} 15...
Rfd8 {[%clk 0:02:23.2]} 16. Rd4 {[%clk 0:01:33.8]} 16... e6 {[%clk 0:01:24.7]}
17. Bg5 {[%clk 0:01:13.8]} 17... Ne7 {[%clk 0:01:18.5]} 18. Rxd8+ {[%clk
0:01:13.5]} 18... Rxd8 {[%clk 0:01:18]} 19. b4 {[%clk 0:00:59.9]} 19... Nb7
{[%clk 0:01:06.5]} 20. Nc3 {[%clk 0:00:59.4]} 20... Rd7 {[%clk 0:00:46.8]} 21.
Ne4 {[%clk 0:00:49.2]} 21... h6 {[%clk 0:00:40.8]} 22. Nf6+ {[%clk 0:00:45.3]}
22... Bxf6 {[%clk 0:00:24.7]} 23. Bxf6 {[%clk 0:00:46.2]} 23... Nf5 {[%clk
0:00:24.2]} 24. b5 {[%clk 0:00:34]} 24... cxb5 {[%clk 0:00:24.2]} 25. cxb5
{[%clk 0:00:34.2]} 25... Bxb5 {[%clk 0:00:21.6]} 26. Qxb5 {[%clk 0:00:33.8]}
26... Rd5 {[%clk 0:00:17.5]} 27. Qe8+ {[%clk 0:00:33.8]} 1-0

[Event "*** Titled Tuesday Blitz"]
[Site "Chess.com"]
[Date "2020.04.07"]
[Round "8"]
[White "Agent-JL"]
[Black "Rish_97"]
[Result "0-1"]
[WhiteElo "2433"]
[BlackElo "2575"]
[TimeControl "180+1"]
[EndTime "14:33:13 PDT"]
[Termination "Rish_97 won on time"]

1. b3 {[%clk 0:03:00.9]} 1... Nf6 {[%clk 0:02:57.2]} 2. Bb2 {[%clk 0:03:00.4]}
2... d6 {[%clk 0:02:57.3]} 3. Nf3 {[%clk 0:03:00.9]} 3... g6 {[%clk 0:02:57.5]}
4. d4 {[%clk 0:03:01.5]} 4... Bg7 {[%clk 0:02:57.8]} 5. g3 {[%clk 0:03:02.1]}
5... O-O {[%clk 0:02:58.2]} 6. Bg2 {[%clk 0:03:02.8]} 6... b5 {[%clk 0:02:57.4]}
7. a4 {[%clk 0:02:55.5]} 7... bxa4 {[%clk 0:02:55.4]} 8. Rxa4 {[%clk 0:02:56.4]}
8... Bb7 {[%clk 0:02:56.3]} 9. O-O {[%clk 0:02:55.2]} 9... Nbd7 {[%clk
0:02:53.6]} 10. Nbd2 {[%clk 0:02:54.5]} 10... c5 {[%clk 0:02:52.6]} 11. Ra1
{[%clk 0:02:51.1]} 11... Qc7 {[%clk 0:02:49.6]} 12. c4 {[%clk 0:02:48.8]} 12...
cxd4 {[%clk 0:02:42.6]} 13. Bxd4 {[%clk 0:02:49.7]} 13... a5 {[%clk 0:02:39.6]}
14. Qc2 {[%clk 0:02:24.3]} 14... Nc5 {[%clk 0:02:37]} 15. Qb2 {[%clk 0:02:19.6]}
15... Rfb8 {[%clk 0:02:34]} 16. Qa3 {[%clk 0:02:05.5]} 16... Nfe4 {[%clk
0:02:15.3]} 17. Bxg7 {[%clk 0:01:57.8]} 17... Kxg7 {[%clk 0:02:16.1]} 18. Rfd1
{[%clk 0:01:50.2]} 18... Nxd2 {[%clk 0:01:59.6]} 19. Rxd2 {[%clk 0:01:43.2]}
19... Bxf3 {[%clk 0:01:52.6]} 20. Qb2+ {[%clk 0:01:36.1]} 20... Kg8 {[%clk
0:01:37.3]} 21. Bxf3 {[%clk 0:01:36.1]} 21... Nxb3 {[%clk 0:01:29.4]} 22. Bxa8
{[%clk 0:01:30.7]} 22... Nxa1 {[%clk 0:01:27.7]} 23. Qxa1 {[%clk 0:01:27.5]}
23... Rxa8 {[%clk 0:01:28]} 24. Qd4 {[%clk 0:01:20.2]} 24... a4 {[%clk
0:01:26.8]} 25. Ra2 {[%clk 0:01:05.7]} 25... h5 {[%clk 0:01:23]} 26. c5 {[%clk
0:00:44.1]} 26... Qxc5 {[%clk 0:01:17.7]} 27. Qe4 {[%clk 0:00:30.4]} 27... d5
{[%clk 0:01:14.3]} 28. Qd3 {[%clk 0:00:16.4]} 28... a3 {[%clk 0:01:14]} 29. Kg2
{[%clk 0:00:04.6]} 29... Qc4 {[%clk 0:01:12.1]} 30. Qd2 {[%clk 0:00:01.4]} 30...
d4 {[%clk 0:01:09.6]} 31. f3 {[%clk 0:00:01.4]} 31... Qc3 {[%clk 0:01:03.1]} 32.
Rc2 {[%clk 0:00:02.3]} 32... Qxd2 {[%clk 0:01:02.8]} 33. Rxd2 {[%clk 0:00:03.1]}
33... a2 {[%clk 0:01:03.7]} 0-1

[Event "*** Titled Tuesday Blitz"]
[Site "Chess.com"]
[Date "2020.04.07"]
[Round "8"]
[White "Berant"]
[Black "Zq1"]
[Result "0-1"]
[WhiteElo "2378"]
[BlackElo "2554"]
[TimeControl "180+1"]
[EndTime "14:33:17 PDT"]
[Termination "Zq1 won on time"]

1. e4 {[%clk 0:02:56.8]} 1... c5 {[%clk 0:02:58.9]} 2. Nf3 {[%clk 0:02:56.2]}
2... d6 {[%clk 0:02:59]} 3. Bb5+ {[%clk 0:02:55.1]} 3... Bd7 {[%clk 0:02:58.8]}
4. Bxd7+ {[%clk 0:02:53.9]} 4... Nxd7 {[%clk 0:02:58.9]} 5. d4 {[%clk
0:02:54.3]} 5... cxd4 {[%clk 0:02:58.1]} 6. Qxd4 {[%clk 0:02:54.6]} 6... Ngf6
{[%clk 0:02:57.7]} 7. c4 {[%clk 0:02:55]} 7... g6 {[%clk 0:02:57.7]} 8. Nc3
{[%clk 0:02:53.5]} 8... Bg7 {[%clk 0:02:57.8]} 9. Be3 {[%clk 0:02:53.8]} 9...
O-O {[%clk 0:02:57.4]} 10. Qd2 {[%clk 0:02:54.2]} 10... Rc8 {[%clk 0:02:54.7]}
11. Qe2 {[%clk 0:01:48.7]} 11... Qc7 {[%clk 0:02:50.7]} 12. Nd2 {[%clk
0:01:47.1]} 12... Nb6 {[%clk 0:02:39]} 13. b3 {[%clk 0:01:31.4]} 13... Ng4
{[%clk 0:02:33.1]} 14. Qxg4 {[%clk 0:01:31.1]} 14... Bxc3 {[%clk 0:02:31.8]} 15.
Rc1 {[%clk 0:01:31.1]} 15... Bg7 {[%clk 0:02:27.9]} 16. O-O {[%clk 0:01:28.9]}
16... Nd7 {[%clk 0:02:27.5]} 17. h4 {[%clk 0:01:25.5]} 17... Qa5 {[%clk
0:02:25]} 18. Qxd7 {[%clk 0:01:15]} 18... Qxa2 {[%clk 0:02:24.3]} 19. Qxe7
{[%clk 0:01:05]} 19... Qa6 {[%clk 0:02:16.4]} 20. Nf3 {[%clk 0:00:57.1]} 20...
Rce8 {[%clk 0:02:05.2]} 21. Qd7 {[%clk 0:00:54]} 21... Rxe4 {[%clk 0:02:04.1]}
22. Rfd1 {[%clk 0:00:51.5]} 22... Re6 {[%clk 0:01:57.4]} 23. Ng5 {[%clk
0:00:46.4]} 23... Rf6 {[%clk 0:01:36.2]} 24. Ne4 {[%clk 0:00:42.3]} 24... Re6
{[%clk 0:01:35.8]} 25. Rxd6 {[%clk 0:00:40.3]} 25... Rxd6 {[%clk 0:01:35.8]} 26.
Qxd6 {[%clk 0:00:40.2]} 26... Qa2 {[%clk 0:01:32.3]} 27. Nf6+ {[%clk 0:00:36.6]}
27... Kh8 {[%clk 0:01:31]} 28. Bd4 {[%clk 0:00:32.2]} 28... Qd2 {[%clk
0:01:22.4]} 29. Rf1 {[%clk 0:00:24.4]} 29... Qd3 {[%clk 0:01:20.7]} 30. Re1
{[%clk 0:00:18.9]} 30... Qd2 {[%clk 0:01:16.4]} 31. Rf1 {[%clk 0:00:16.2]} 31...
Qd3 {[%clk 0:01:16.1]} 32. Ra1 {[%clk 0:00:12]} 32... h5 {[%clk 0:01:11.7]} 33.
Rxa7 {[%clk 0:00:11.4]} 33... Qxb3 {[%clk 0:01:02.3]} 34. Nd5 {[%clk 0:00:06.6]}
34... Qd1+ {[%clk 0:00:58.2]} 35. Kh2 {[%clk 0:00:06.1]} 35... Qxd4 {[%clk
0:00:58.3]} 36. Rxb7 {[%clk 0:00:06.2]} 36... Be5+ {[%clk 0:00:55.9]} 37. f4
{[%clk 0:00:04.1]} 37... Bxd6 {[%clk 0:00:55.5]} 0-1

[Event "*** Titled Tuesday Blitz"]
[Site "Chess.com"]
[Date "2020.04.07"]
[Round "8"]
[White "MasterKroket"]
[Black "levallem"]
[Result "1-0"]
[WhiteElo "2470"]
[BlackElo "2125"]
[TimeControl "180+1"]
[EndTime "14:33:17 PDT"]
[Termination "MasterKroket won by resignation"]

1. d4 {[%clk 0:03:00.9]} 1... Nf6 {[%clk 0:02:58.1]} 2. c4 {[%clk 0:03:01.6]}
2... e6 {[%clk 0:02:58.3]} 3. Nf3 {[%clk 0:03:01]} 3... b6 {[%clk 0:02:57]} 4.
a3 {[%clk 0:02:58.5]} 4... Bb7 {[%clk 0:02:57.1]} 5. Nc3 {[%clk 0:02:59.2]} 5...
d5 {[%clk 0:02:53.9]} 6. cxd5 {[%clk 0:02:59.8]} 6... Nxd5 {[%clk 0:02:52.3]} 7.
Qc2 {[%clk 0:02:59.9]} 7... Nd7 {[%clk 0:02:48.5]} 8. Bd2 {[%clk 0:02:57.9]}
8... N7f6 {[%clk 0:02:40.5]} 9. Rc1 {[%clk 0:02:49.5]} 9... c5 {[%clk
0:02:37.3]} 10. dxc5 {[%clk 0:02:38.1]} 10... Bxc5 {[%clk 0:02:21.6]} 11. b4
{[%clk 0:02:38.6]} 11... Be7 {[%clk 0:02:15.7]} 12. e4 {[%clk 0:01:51.2]} 12...
Nxc3 {[%clk 0:02:14]} 13. Bxc3 {[%clk 0:01:51.6]} 13... Bxe4 {[%clk 0:01:49.3]}
14. Bb5+ {[%clk 0:01:51.7]} 14... Kf8 {[%clk 0:01:48.9]} 15. Qe2 {[%clk
0:01:51.8]} 15... Bd5 {[%clk 0:01:36.1]} 16. O-O {[%clk 0:01:48.8]} 16... Ne4
{[%clk 0:01:15.6]} 17. Be5 {[%clk 0:01:33]} 17... Rc8 {[%clk 0:01:06.6]} 18. Ba6
{[%clk 0:01:26.2]} 18... Rc6 {[%clk 0:00:52.1]} 19. Nd4 {[%clk 0:01:17.5]} 19...
Rc3 {[%clk 0:00:44.2]} 20. Nb5 {[%clk 0:01:04.6]} 20... Rc6 {[%clk 0:00:25.4]}
21. Nxa7 {[%clk 0:01:00.1]} 21... Qa8 {[%clk 0:00:24.5]} 22. Nxc6 {[%clk
0:00:57]} 22... Bxc6 {[%clk 0:00:25.4]} 23. b5 {[%clk 0:00:53.9]} 23... Bb7
{[%clk 0:00:25]} 24. Rc7 {[%clk 0:00:38]} 24... Nc5 {[%clk 0:00:22.7]} 25. Bxb7
{[%clk 0:00:35.8]} 25... Nxb7 {[%clk 0:00:21.9]} 26. Qe4 {[%clk 0:00:33.2]}
26... f6 {[%clk 0:00:17.4]} 27. Qxb7 {[%clk 0:00:30]} 27... Qxb7 {[%clk
0:00:17]} 28. Rxb7 {[%clk 0:00:30.9]} 28... Kf7 {[%clk 0:00:16.6]} 29. Bd6
{[%clk 0:00:30.3]} 29... Re8 {[%clk 0:00:16.8]} 30. Bxe7 {[%clk 0:00:30.6]} 1-0